bitfinex/quotes_BTCUSD_20250617
["timestamp","ask_amount","ask_price","bid_price","bid_amount"]
[1750195111907,0.93455642,104610.0,104600.0,0.20200176]
[1750195112596,0.59455642,104610.0,104600.0,0.20200176]
[1750195114514,0.93455642,104610.0,104600.0,0.20200176]
[1750195114725,0.90772043,104610.0,104600.0,0.20200176]
[1750195114940,0.93456687,104610.0,104600.0,0.20200176]
[1750195115123,0.93456687,104610.0,104600.0,0.24517394]
[1750195115591,0.93456687,104610.0,104600.0,0.20200176]
[1750195116011,0.93459214,104610.0,104600.0,0.20200176]
[1750195117259,0.93460545,104610.0,104600.0,0.20200176]
[1750195117468,0.93460674,104610.0,104600.0,0.20200176]
[1750195119615,0.93460609,104610.0,104600.0,0.20200176]
[1750195123309,0.93460645,104610.0,104600.0,0.20200176]
[1750195125001,0.77424645,104610.0,104600.0,0.20200176]
[1750195125218,0.77424645,104610.0,104600.0,0.24517394]
[1750195125433,0.93456645,104610.0,104600.0,0.25971479]
[1750195126074,0.93456645,104610.0,104600.0,0.21654261]
[1750195126725,0.93456798,104610.0,104600.0,0.17358261]
[1750195126937,0.93456798,104610.0,104600.0,0.21646261]
[1750195127605,0.93456796,104610.0,104600.0,0.21646261]
[1750195128030,0.93456796,104610.0,104600.0,0.15366261]
[1750195129131,0.93456796,104610.0,104600.0,0.18556261]
[1750195129575,0.93456796,104610.0,104600.0,0.13912176]
[1750195129785,0.96998217,104610.0,104600.0,0.13912176]
[1750195130923,1.00088217,104610.0,104600.0,0.13912176]
[1750195131366,1.00088494,104610.0,104600.0,0.13912176]
[1750195131588,0.9941632,104610.0,104600.0,0.13912176]
[1750195131812,1.02102681,104610.0,104590.0,0.29392]
[1750195132042,0.85104462,104600.0,104590.0,0.22972]
[1750195132278,0.90081473,104600.0,104590.0,0.27256]
[1750195132494,0.96141473,104600.0,104590.0,0.27256]
[1750195133158,0.99015273,104600.0,104590.0,0.27256]
[1750195133366,0.99015659,104600.0,104590.0,0.27256]
[1750195133639,0.95955659,104600.0,104590.0,0.27256]
[1750195133928,0.99015659,104600.0,104590.0,0.27256]
[1750195134161,1.45826849,104600.0,104590.0,0.27256]
[1750195134617,1.45826834,104600.0,104590.0,0.27256]
[1750195134852,1.49628017,104600.0,104590.0,0.27256]
[1750195135110,1.45826834,104600.0,104590.0,0.27256]
[1750195135377,1.49628017,104600.0,104590.0,0.27256]
[1750195136067,1.49627472,104600.0,104590.0,0.27256]
[1750195136288,1.26069182,104600.0,104590.0,0.27256]
[1750195137444,0.35078383,104590.0,104580.0,0.1004743]
[1750195137668,0.60244954,104590.0,104580.0,0.1433143]
[1750195137897,0.65702935,104590.0,104580.0,0.1433143]
[1750195138329,1.19702935,104590.0,104580.0,0.1433143]
[1750195138540,1.20374464,104590.0,104580.0,0.1433143]
[1750195138751,1.20372438,104590.0,104580.0,0.1443143]
[1750195139182,1.20372438,104590.0,104580.0,0.1433143]
[1750195139415,1.2057183,104590.0,104580.0,0.1433143]
[1750195139629,1.23741077,104590.0,104580.0,0.1433143]
[1750195139842,1.2754226,104590.0,104580.0,0.1433143]
[1750195140061,1.27185702,104590.0,104580.0,0.1433143]
[1750195140279,1.27183826,104590.0,104580.0,0.1433143]
[1750195140731,1.36808002,104590.0,104580.0,0.1433143]
[1750195141637,1.51608002,104590.0,104580.0,0.1433143]
[1750195141864,1.52008002,104590.0,104580.0,0.1433143]
[1750195142298,1.51066117,104590.0,104580.0,0.1433143]
[1750195142521,1.5017029,104590.0,104580.0,0.1433543]
[1750195142739,1.50762465,104590.0,104580.0,0.1433543]
[1750195143409,1.72592465,104590.0,104580.0,0.1004743]
[1750195143624,1.73092465,104590.0,104580.0,0.1433543]
[1750195144059,1.47440289,104590.0,104580.0,0.1433543]
[1750195144267,1.4206838,104590.0,104580.0,0.1433543]
[1750195144456,1.5164638,104590.0,104580.0,0.1433543]
[1750195145357,1.5164612,104590.0,104580.0,0.1433543]
[1750195145548,1.5124612,104590.0,104580.0,0.1433543]
[1750195145983,1.5094612,104590.0,104580.0,0.1433543]
[1750195146200,1.54105418,104590.0,104580.0,0.1433543]
[1750195146657,1.54102328,104590.0,104580.0,0.1433543]
[1750195147781,1.54102328,104590.0,104580.0,0.1383543]
[1750195148249,1.54102139,104590.0,104580.0,0.1383543]
[1750195149582,1.5343221,104590.0,104580.0,0.1383543]
[1750195149839,1.60431749,104590.0,104580.0,0.1383543]
[1750195150072,1.60431741,104590.0,104580.0,0.1383543]
[1750195150308,1.40948241,104590.0,104580.0,0.2011543]
[1750195150549,0.62419404,104590.0,104580.0,0.21498973]
[1750195150791,0.41633575,104590.0,104580.0,0.31123149]
[1750195151032,0.88480883,104590.0,104580.0,0.31123149]
[1750195151266,0.88480883,104590.0,104580.0,0.29739606]
[1750195151769,0.88280883,104590.0,104580.0,0.29739606]
[1750195152008,0.88280883,104590.0,104580.0,0.31193691]
[1750195152757,0.87980883,104590.0,104580.0,0.31193691]
[1750195153095,0.87980883,104590.0,104580.0,0.31293691]
[1750195153958,0.87980883,104590.0,104580.0,0.3442306]
[1750195154632,0.71952883,104590.0,104580.0,0.3442306]
[1750195154855,0.85106383,104590.0,104580.0,0.3442306]
[1750195155515,0.85106383,104590.0,104580.0,0.31293691]
[1750195156166,0.85102383,104590.0,104580.0,0.31293691]
[1750195159031,0.85102383,104590.0,104580.0,0.54269691]
[1750195160595,0.69787932,104590.0,104580.0,0.54269691]
[1750195161064,0.70744028,104590.0,104580.0,0.54269691]
[1750195161848,0.70744028,104590.0,104580.0,0.58690975]
[1750195163545,0.70744028,104590.0,104580.0,0.49981691]
[1750195163745,0.70744028,104590.0,104580.0,0.54261691]
[1750195165988,0.54472028,104590.0,104580.0,0.54261691]
[1750195166195,0.70492028,104590.0,104580.0,0.54261691]
[1750195170243,0.70492028,104590.0,104580.0,0.46527606]
[1750195170447,0.71385607,104590.0,104580.0,0.46527606]
[1750195170734,0.75460008,104590.0,104580.0,0.46527606]
[1750195171153,0.75460625,104590.0,104580.0,0.46527606]
[1750195171367,0.73673464,104590.0,104580.0,0.49807606]
[1750195171548,0.75461855,104590.0,104580.0,0.49807606]
[1750195172108,0.75461865,104590.0,104580.0,0.49807606]
[1750195172326,0.75461865,104590.0,104580.0,0.52847606]
[1750195175204,0.75461865,104590.0,104580.0,0.58132367]
[1750195175420,0.78335865,104590.0,104580.0,0.58132367]
[1750195176501,0.62315865,104590.0,104580.0,0.59586452]
[1750195176707,0.71382234,104590.0,104580.0,0.59586452]
[1750195176911,0.55366817,104590.0,104580.0,0.59586452]
[1750195177381,0.71382817,104590.0,104580.0,0.59586452]
[1750195178428,0.72338903,104590.0,104580.0,0.59586452]
[1750195178848,0.72338903,104590.0,104580.0,0.78710567]
[1750195179254,0.7413064,104590.0,104580.0,0.78710567]
[1750195179461,0.76422518,104590.0,104580.0,0.78710567]
[1750195179694,0.71444114,104590.0,104580.0,0.79666772]
[1750195179878,0.72339991,104590.0,104580.0,0.78710567]
[1750195180297,0.74633187,104590.0,104580.0,0.78710567]
[1750195180710,0.72339991,104590.0,104580.0,0.78710567]
[1750195181147,0.72720995,104590.0,104580.0,0.59586452]
[1750195181353,0.74512598,104590.0,104580.0,0.54301691]
[1750195181778,0.74512598,104590.0,104580.0,0.73425806]
[1750195182316,0.75468712,104590.0,104580.0,0.73425806]
[1750195182519,0.75468653,104590.0,104580.0,0.73425806]
[1750195182718,0.75468653,104590.0,104580.0,0.83040728]
[1750195182938,0.75468647,104590.0,104580.0,0.54301691]
[1750195184647,0.75468647,104590.0,104580.0,0.31325691]
[1750195187540,0.7546877,104590.0,104580.0,0.31325691]
[1750195188494,0.75469463,104590.0,104580.0,0.26831606]
[1750195188705,0.45409549,104590.0,104580.0,0.50599806]
[1750195188929,0.38981417,104590.0,104580.0,0.62068822]
[1750195189152,0.36981686,104610.0,104590.0,0.27702477]
[1750195189373,0.0095594,104600.0,104590.0,0.29614604]
[1750195189588,0.24818055,104610.0,104600.0,0.27700547]
[1750195189816,0.73850421,104610.0,104600.0,0.43160641]
[1750195190026,0.73850421,104610.0,104600.0,0.4316065]
[1750195190242,0.23719169,104610.0,104600.0,0.16964176]
[1750195190450,0.71938659,104610.0,104600.0,0.16964176]
[1750195190633,0.76021208,104610.0,104600.0,0.13904176]
[1750195190871,0.76021208,104610.0,104600.0,0.16964176]
[1750195191120,0.74231283,104610.0,104600.0,0.16964176]
[1750195191331,0.60009242,104610.0,104600.0,0.16964176]
[1750195191543,0.74231283,104610.0,104600.0,0.16964176]
[1750195191772,0.74631283,104610.0,104600.0,0.40718719]
[1750195191980,0.74231283,104610.0,104600.0,0.40718719]
[1750195192191,0.74231283,104610.0,104600.0,0.21598261]
[1750195194612,0.50012,104610.0,104600.0,0.21598261]
[1750195194796,0.69130631,104610.0,104600.0,0.21598261]
[1750195196519,0.69130631,104610.0,104600.0,0.23119491]
[1750195197965,0.72300631,104610.0,104600.0,0.13900176]
[1750195198160,0.69130631,104610.0,104600.0,0.13900176]
[1750195198396,0.73209975,104610.0,104600.0,0.13900176]
[1750195198591,0.69130631,104610.0,104600.0,0.13900176]
[1750195199375,0.72004031,104610.0,104600.0,0.17070176]
[1750195199584,0.72004031,104610.0,104600.0,0.21298888]
[1750195200392,0.72004031,104610.0,104600.0,0.13900176]
[1750195200831,0.69076462,104600.0,104590.0,0.2911]
[1750195201042,0.69076462,104600.0,104590.0,0.38734176]
[1750195201260,0.69076462,104600.0,104590.0,0.13900176]
[1750195202170,0.69076462,104600.0,104590.0,0.09824176]
[1750195202381,0.70865163,104600.0,104590.0,0.14100176]
[1750195202592,0.69076462,104600.0,104590.0,0.14100176]
[1750195202832,0.73156205,104600.0,104590.0,0.14100176]
[1750195203053,0.73156536,104600.0,104590.0,0.14100176]
[1750195203491,0.73156536,104600.0,104590.0,0.13900176]
[1750195203953,0.73156536,104600.0,104590.0,0.14000176]
[1750195204205,0.73156536,104600.0,104590.0,0.04376]
[1750195204206,0.79486536,104600.0,104590.0,0.04376]
[1750195204449,0.79486536,104600.0,104590.0,0.04276]
[1750195204667,0.20078383,104590.0,104580.0,0.3251943]
[1750195204889,0.59201458,104590.0,104580.0,0.3251943]
[1750195205113,1.21538965,104590.0,104580.0,0.3679543]
[1750195205411,1.25340148,104590.0,104580.0,0.3251943]
[1750195205623,1.25340148,104590.0,104580.0,0.3679543]
[1750195206304,1.21538965,104590.0,104580.0,0.3679543]
[1750195206529,1.22433495,104590.0,104580.0,0.3679543]
[1750195206756,1.22433496,104590.0,104580.0,0.3679543]
[1750195207040,1.22433496,104590.0,104580.0,0.0954743]
[1750195207041,1.41967575,104590.0,104580.0,0.0954743]
[1750195207276,1.45040485,104560.0,104550.0,0.04276]
[1750195207504,0.70046524,104530.0,104520.0,0.26266232]
[1750195207731,0.86210524,104530.0,104520.0,0.27262232]
[1750195207983,0.90280732,104530.0,104520.0,0.27262232]
[1750195208483,0.87995824,104530.0,104520.0,0.27262232]
[1750195209429,0.90557158,104530.0,104520.0,0.27262232]
[1750195209636,0.93727158,104530.0,104520.0,0.27262232]
[1750195209893,0.94619748,104530.0,104520.0,0.27262232]
[1750195210130,0.97667318,104530.0,104520.0,0.27262232]
[1750195210353,0.91466592,104530.0,104520.0,0.27262232]
[1750195210596,0.91350036,104530.0,104520.0,0.27262232]
[1750195210832,0.94520036,104530.0,104520.0,0.27262232]
[1750195211087,1.02335476,104530.0,104520.0,0.00014232]
[1750195211501,1.05211776,104530.0,104520.0,0.00014232]
[1750195212367,1.02933593,104530.0,104520.0,0.00014232]
[1750195213462,1.01158158,104530.0,104520.0,0.00014232]
[1750195214079,1.02928587,104530.0,104520.0,0.00014232]
[1750195214283,1.05197781,104530.0,104520.0,0.00014232]
[1750195214696,1.14821957,104530.0,104520.0,0.00014232]
[1750195215115,1.13051528,104530.0,104520.0,0.00014232]
[1750195215321,1.14821938,104530.0,104520.0,0.00014232]
[1750195215744,1.17334627,104530.0,104520.0,0.00014232]
[1750195217227,1.34823163,104520.0,104510.0,68.66999949]
[1750195217447,1.37653163,104520.0,104510.0,68.67047276]
[1750195217880,1.50587339,104520.0,104510.0,68.67047276]
[1750195218154,1.57129956,104520.0,104510.0,68.62771276]
[1750195218341,1.59986389,104520.0,104510.0,68.62771276]
[1750195218567,1.76474389,104520.0,104510.0,68.62771276]
[1750195219643,1.74607858,104520.0,104510.0,68.62771276]
[1750195220093,1.75007858,104520.0,104510.0,68.62771276]
[1750195220517,1.75019858,104520.0,104510.0,68.62871276]
[1750195220767,1.75019858,104520.0,104510.0,68.62771276]
[1750195220988,1.75519858,104520.0,104510.0,68.62771276]
[1750195225006,1.75507858,104520.0,104510.0,68.62771276]
[1750195225212,1.59119858,104520.0,104510.0,68.62771276]
[1750195225420,1.63632524,104520.0,104510.0,68.62771276]
[1750195225829,1.60776091,104520.0,104510.0,68.62771276]
[1750195226240,1.63632524,104520.0,104510.0,68.62771276]
[1750195226462,1.47248524,104520.0,104510.0,68.62771276]
[1750195226668,1.63628524,104520.0,104510.0,68.62771276]
[1750195227292,1.47248524,104520.0,104510.0,68.62771276]
[1750195227508,1.63628524,104520.0,104510.0,68.62771276]
[1750195227938,1.47248524,104520.0,104510.0,68.62771276]
[1750195228146,1.12255226,104520.0,104510.0,68.78456198]
[1750195228412,1.12255226,104520.0,104510.0,68.68841276]
[1750195228413,1.28635226,104520.0,104510.0,68.68841276]
[1750195229955,1.28235226,104520.0,104510.0,68.68841276]
[1750195230194,1.28535226,104520.0,104510.0,68.68841276]
[1750195230410,1.28035226,104520.0,104510.0,68.68841276]
[1750195230636,1.11955226,104520.0,104510.0,68.68841276]
[1750195230850,1.28339226,104520.0,104510.0,68.68841276]
[1750195231073,1.11955226,104520.0,104510.0,68.68841276]
[1750195231307,0.37955226,104520.0,104510.0,68.88080374]
[1750195231530,0.35691829,104520.0,104510.0,68.88080374]
[1750195231759,0.54691829,104520.0,104510.0,68.88080374]
[1750195231962,0.37075829,104520.0,104510.0,68.88080374]
[1750195232384,0.71075829,104520.0,104510.0,68.88080374]
[1750195232739,0.71075829,104520.0,104510.0,68.78465452]
[1750195233150,0.70775829,104520.0,104510.0,68.78465452]
[1750195233347,0.72750145,104520.0,104510.0,68.78465452]
[1750195233587,0.72750145,104520.0,104510.0,68.78765452]
[1750195234878,0.72750145,104520.0,104510.0,68.78865452]
[1750195236295,0.75606578,104520.0,104510.0,68.78865452]
[1750195236964,0.76498134,104520.0,104510.0,68.78865452]
[1750195238665,0.71367385,104520.0,104510.0,68.78865452]
[1750195239102,0.21048556,104520.0,104510.0,68.89934459]
[1750195239321,0.20091829,104520.0,104510.0,68.89934459]
[1750195239529,0.54091829,104520.0,104510.0,68.89934459]
[1750195239747,0.54091829,104520.0,104510.0,69.1002821]
[1750195239947,0.56005282,104520.0,104510.0,69.11941819]
[1750195240094,0.36870125,104520.0,104510.0,69.12898601]
[1750195240301,0.35913389,104520.0,104510.0,69.29290601]
[1750195240717,0.3591338,104520.0,104510.0,69.29290601]
[1750195240917,0.0191338,104520.0,104510.0,69.29290601]
[1750195241124,0.00956681,104520.0,104510.0,69.29290601]
[1750195241335,0.00956599,104530.0,104520.0,0.02870135]
[1750195241507,0.01913188,104530.0,104520.0,0.68615414]
[1750195241720,0.0095658,104530.0,104520.0,0.68376271]
[1750195242104,0.01913179,104530.0,104520.0,0.68376271]
[1750195242301,0.01848021,104540.0,104530.0,0.29697227]
[1750195242503,0.00956489,104540.0,104530.0,0.64809016]
[1750195242915,0.35912987,104540.0,104530.0,0.64809016]
[1750195243132,0.01912987,104540.0,104530.0,0.64809016]
[1750195243336,0.21935673,104550.0,104540.0,0.22001036]
[1750195243595,0.55998904,104550.0,104540.0,0.59900705]
[1750195243802,0.55998904,104550.0,104540.0,0.69071056]
[1750195243997,0.02869301,104550.0,104540.0,0.70027563]
[1750195244452,0.36869301,104550.0,104540.0,0.70027563]
[1750195244625,0.36869301,104550.0,104540.0,0.70227563]
[1750195244845,0.36869292,104550.0,104540.0,0.70227563]
[1750195245045,0.37825753,104550.0,104540.0,0.70227563]
[1750195245779,0.36869301,104550.0,104540.0,0.70227563]
[1750195245991,0.36869283,104550.0,104540.0,0.70627563]
[1750195246205,0.3591284,104550.0,104540.0,0.70627563]
[1750195246547,0.36869292,104550.0,104540.0,0.70627563]
[1750195246952,0.3591284,104550.0,104540.0,0.70627563]
[1750195247355,0.3591284,104550.0,104540.0,0.72081648]
[1750195247974,0.00956352,104560.0,104550.0,0.29136583]
[1750195248178,0.55996828,104560.0,104550.0,0.69899694]
[1750195248628,0.55996828,104560.0,104550.0,0.68943287]
[1750195248818,0.54084152,104560.0,104550.0,0.67986835]
[1750195249238,0.54084152,104560.0,104550.0,0.68956895]
[1750195249431,0.53127773,104560.0,104550.0,0.68200443]
[1750195249937,0.53127773,104560.0,104550.0,0.69156895]
[1750195250143,0.53127773,104560.0,104550.0,0.68200443]
[1750195251309,0.53127773,104560.0,104550.0,0.69156895]
[1750195254613,0.53127773,104560.0,104550.0,0.98266895]
[1750195255343,0.53127773,104560.0,104550.0,0.97310443]
[1750195256546,0.53127773,104560.0,104550.0,0.97310462]
[1750195256746,0.53127773,104560.0,104550.0,0.98266933]
[1750195257312,0.53127773,104560.0,104550.0,0.96353982]
[1750195257516,0.53127773,104560.0,104550.0,0.97310462]
[1750195257736,0.53127773,104560.0,104550.0,0.77224379]
[1750195258926,0.53127773,104560.0,104550.0,0.97310443]
[1750195259137,0.53127773,104560.0,104550.0,0.98266886]
[1750195260632,0.53127773,104560.0,104550.0,0.88960376]
[1750195261035,0.53127773,104560.0,104550.0,0.87047472]
[1750195261240,0.53127773,104560.0,104550.0,0.88003952]
[1750195261703,0.19127773,104560.0,104550.0,0.88003952]
[1750195262486,0.19127773,104560.0,104550.0,1.11940423]
[1750195262681,0.19127773,104560.0,104550.0,1.21555345]
[1750195263701,0.19127773,104560.0,104550.0,1.2346824]
[1750195263903,0.20084161,104560.0,104550.0,1.2346824]
[1750195264254,0.21040522,104560.0,104550.0,1.22511806]
[1750195264678,0.21040522,104560.0,104550.0,1.23468258]
[1750195264953,0.21040522,104560.0,104550.0,1.24424646]
[1750195265287,0.21040522,104560.0,104550.0,1.14809724]
[1750195268173,0.01912694,104560.0,104550.0,1.14809669]
[1750195268381,0.02869064,104560.0,104550.0,1.14809669]
[1750195269320,0.22953216,104560.0,104550.0,1.14809669]
[1750195269465,0.03825443,104560.0,104550.0,1.14809669]
[1750195269676,0.03825443,104560.0,104550.0,1.24424591]
[1750195270095,0.02869064,104560.0,104550.0,1.24424591]
[1750195270586,0.01912694,104560.0,104550.0,1.24424591]
[1750195270825,0.02869,104560.0,104550.0,1.24424591]
[1750195271006,0.0382537,104560.0,104550.0,1.24424591]
[1750195271432,0.02869,104560.0,104550.0,1.24424591]
[1750195271828,0.01912639,104560.0,104550.0,1.24424591]
[1750195272113,0.02869,104560.0,104550.0,1.24424591]
[1750195272327,0.01912639,104560.0,104550.0,1.24424591]
[1750195272650,0.02868991,104560.0,104550.0,1.24424591]
[1750195272866,0.02868981,104560.0,104550.0,1.24424591]
[1750195273506,0.01912639,104560.0,104550.0,1.24424591]
[1750195274207,0.03825351,104560.0,104550.0,1.24424591]
[1750195274673,0.02868981,104560.0,104550.0,1.24424591]
[1750195275283,0.01912639,104560.0,104550.0,1.24424591]
[1750195275717,0.02868991,104560.0,104550.0,1.24424591]
[1750195276344,0.01912639,104560.0,104550.0,1.24424591]
[1750195276495,0.01912621,104560.0,104550.0,1.24424591]
[1750195276707,0.02868954,104560.0,104550.0,1.24424591]
[1750195276920,0.02868954,104560.0,104550.0,1.24724591]
[1750195277113,0.01912621,104560.0,104550.0,1.24524591]
[1750195277327,0.01912529,104570.0,104560.0,0.29660913]
[1750195277530,0.21038473,104570.0,104560.0,0.53388011]
[1750195277941,0.21994761,104570.0,104560.0,0.53388011]
[1750195278141,0.02868817,104570.0,104560.0,0.82498011]
[1750195279234,0.02868817,104570.0,104560.0,0.82698011]
[1750195279459,0.02868744,104570.0,104560.0,0.82698011]
[1750195279915,0.02868744,104570.0,104560.0,0.82898011]
[1750195280659,0.01912475,104570.0,104560.0,0.82898011]
[1750195280920,0.02868744,104570.0,104560.0,0.82898011]
[1750195281549,0.01912475,104570.0,104560.0,0.82898011]
[1750195281753,0.36036516,104580.0,104570.0,0.28812558]
[1750195281915,0.86176516,104580.0,104570.0,0.47524412]
[1750195282276,0.70036516,104580.0,104570.0,0.47524412]
[1750195282485,0.70992685,104580.0,104570.0,0.48480654]
[1750195282690,0.70992685,104580.0,104570.0,0.46568161]
[1750195282892,0.70036516,104580.0,104570.0,0.46668161]
[1750195283099,0.70036516,104580.0,104570.0,0.4858069]
[1750195283738,0.70036516,104580.0,104570.0,0.4762443]
[1750195283946,0.70036516,104580.0,104570.0,0.4772443]
[1750195284195,0.70036516,104580.0,104570.0,0.5112018]
[1750195284435,0.70036516,104580.0,104570.0,0.52076468]
[1750195284657,0.6908032,104580.0,104570.0,0.52076468]
[1750195285958,0.6908032,104580.0,104570.0,0.47724468]
[1750195286164,0.6908032,104580.0,104570.0,0.52076468]
[1750195287131,0.6908032,104580.0,104570.0,0.81186468]
[1750195287516,0.6908032,104580.0,104570.0,0.82142746]
[1750195287929,0.6908032,104580.0,104570.0,0.81186468]
[1750195288169,0.6908032,104580.0,104570.0,0.82142746]
[1750195289345,0.6908032,104580.0,104570.0,0.60147939]
[1750195291290,0.6908032,104580.0,104570.0,0.51060261]
[1750195292881,0.6908032,104580.0,104570.0,0.21950261]
[1750195294378,0.7236032,104580.0,104570.0,0.09824176]
[1750195294597,0.7236032,104580.0,104570.0,0.14176176]
[1750195295452,0.7866032,104580.0,104570.0,0.04552]
[1750195295657,1.1866032,104580.0,104570.0,0.002]
[1750195295865,1.3866032,104580.0,104570.0,0.04552]
[1750195296071,1.41173009,104580.0,104570.0,0.04552]
[1750195296283,1.41173009,104580.0,104570.0,0.04352]
[1750195296493,1.44347609,104580.0,104570.0,0.04352]
[1750195296912,1.44547609,104580.0,104570.0,0.04352]
[1750195297129,1.44547609,104580.0,104550.0,0.22989608]
[1750195297130,0.76380485,104560.0,104550.0,0.22989608]
[1750195297317,0.92456485,104560.0,104550.0,0.36965784]
[1750195297761,0.77456485,104560.0,104550.0,0.36965784]
[1750195298743,0.54574657,104560.0,104550.0,0.36965784]
[1750195298915,0.75615142,104560.0,104550.0,0.36965784]
[1750195299118,0.75815142,104560.0,104550.0,0.36965784]
[1750195299915,0.75815142,104560.0,104550.0,0.32613784]
[1750195300130,0.75815142,104560.0,104550.0,0.36965784]
[1750195301170,0.75815142,104560.0,104550.0,0.32613784]
[1750195301384,0.75815142,104560.0,104550.0,0.36965784]
[1750195301623,1.53985142,104560.0,104550.0,0.27341608]
[1750195307152,1.56860542,104560.0,104550.0,0.27341608]
[1750195307588,1.56860542,104560.0,104550.0,0.04365608]
[1750195307783,1.66484718,104560.0,104550.0,0.00013608]
[1750195307956,1.66484718,104560.0,104550.0,0.04365608]
[1750195309048,1.66384718,104560.0,104550.0,0.04365608]
[1750195309299,1.66584718,104560.0,104550.0,0.04365608]
[1750195310520,1.66584718,104560.0,104550.0,0.00013608]
[1750195310836,1.76864718,104560.0,104550.0,0.00013608]
[1750195311041,1.66784718,104560.0,104550.0,0.00013608]
[1750195319200,1.63614718,104560.0,104550.0,0.00013608]
[1750195319889,1.31574542,104560.0,104550.0,0.00013608]
[1750195320121,1.47650542,104560.0,104550.0,0.06543608]
[1750195320251,1.27650542,104560.0,104550.0,0.06543608]
[1750195320456,1.11574542,104560.0,104550.0,0.06543608]
[1750195320661,1.11574542,104560.0,104550.0,0.07629169]
[1750195320862,0.39415885,104560.0,104550.0,0.17253345]
[1750195321060,0.36540485,104560.0,104550.0,0.17253345]
[1750195321328,0.86616485,104560.0,104550.0,0.17253345]
[1750195321552,0.86416485,104560.0,104550.0,0.17253345]
[1750195322132,0.70340485,104560.0,104550.0,0.38793494]
[1750195322327,0.86116485,104560.0,104550.0,0.38793494]
[1750195322713,0.71116485,104560.0,104550.0,0.38793494]
[1750195323365,0.71116485,104560.0,104550.0,0.39749946]
[1750195323609,0.71116485,104560.0,104550.0,0.1870743]
[1750195323855,0.70160143,104560.0,104550.0,0.1900743]
[1750195324056,0.70160143,104560.0,104550.0,0.1870743]
[1750195324370,0.54084143,104560.0,104550.0,0.38337033]
[1750195324577,0.70160143,104560.0,104550.0,0.39293513]
[1750195324775,0.70160143,104560.0,104550.0,0.44561984]
[1750195324977,0.70160143,104560.0,104550.0,0.44861984]
[1750195325430,0.69203773,104560.0,104550.0,0.2477591]
[1750195325661,0.69203773,104560.0,104550.0,0.2381943]
[1750195326904,0.69203773,104560.0,104550.0,0.43905513]
[1750195329139,0.69199773,104560.0,104550.0,0.22733869]
[1750195330317,0.69199773,104560.0,104550.0,0.18421869]
[1750195330537,0.69199773,104560.0,104550.0,0.22733869]
[1750195333726,0.69199773,104560.0,104550.0,0.15211869]
[1750195333932,0.69199773,104560.0,104550.0,0.18069784]
[1750195334536,0.69199773,104560.0,104550.0,0.14449784]
[1750195334769,0.69199773,104560.0,104550.0,0.13949784]
[1750195334972,0.69199773,104560.0,104550.0,0.14249784]
[1750195335764,0.94199773,104560.0,104550.0,0.04625608]
[1750195335981,0.97249773,104560.0,104550.0,0.04725608]
[1750195337599,1.17249773,104560.0,104550.0,0.04725608]
[1750195338007,1.32249773,104560.0,104550.0,0.00413608]
[1750195338252,1.35349773,104560.0,104550.0,0.04725608]
[1750195339070,1.38519773,104560.0,104550.0,0.04725608]
[1750195339270,1.35419773,104560.0,104550.0,0.04725608]
[1750195339902,1.35419773,104560.0,104550.0,0.04325608]
[1750195340134,1.35419773,104560.0,104550.0,0.04425608]
[1750195340349,1.35419773,104560.0,104550.0,0.00113608]
[1750195340557,1.38519773,104560.0,104550.0,0.04425608]
[1750195341370,1.38519773,104560.0,104550.0,0.04421608]
[1750195343019,1.38619773,104560.0,104550.0,0.04321608]
[1750195343362,1.38719773,104560.0,104550.0,0.00013608]
[1750195343574,1.38719773,104560.0,104550.0,0.04321608]
[1750195344830,1.48343949,104560.0,104550.0,0.00013608]
[1750195345044,1.48343949,104560.0,104550.0,0.04321608]
[1750195345390,1.48343949,104560.0,104550.0,0.00013608]
[1750195345594,1.48343949,104560.0,104550.0,0.04321608]
[1750195345999,1.58423949,104560.0,104550.0,0.04321608]
[1750195349067,1.61099549,104560.0,104550.0,0.04321608]
[1750195349424,1.61299549,104560.0,104550.0,0.04321608]
[1750195349956,1.61599549,104560.0,104550.0,0.04321608]
[1750195350511,1.64112238,104560.0,104550.0,0.04321608]
[1750195350941,1.64112238,104560.0,104550.0,0.00013608]
[1750195354028,1.6683733,104560.0,104550.0,0.00013608]
[1750195354260,1.73291415,104560.0,104550.0,0.00013608]
[1750195359892,1.78291415,104560.0,104550.0,0.00013608]
[1750195360293,1.78091415,104560.0,104550.0,0.00013608]
[1750195360632,1.77791415,104560.0,104550.0,0.00013608]
[1750195360827,1.78191415,104560.0,104550.0,0.00013608]
[1750195361564,1.78891415,104560.0,104550.0,0.00013608]
[1750195369015,1.56944543,104560.0,104550.0,0.00013608]
[1750195370722,6.49891415,104560.0,104550.0,0.00013608]
[1750195370942,6.81378726,104560.0,104550.0,0.00013608]
[1750195371149,6.83891415,104560.0,104550.0,0.00013608]
[1750195371356,6.81378726,104560.0,104550.0,0.00013608]
[1750195374578,6.87128726,104560.0,104550.0,0.00013608]
[1750195374791,6.89045726,104560.0,104550.0,0.00013608]
[1750195375410,6.88345726,104560.0,104550.0,0.00013608]
[1750195375632,6.89145726,104560.0,104550.0,0.00013608]
[1750195375849,6.88745726,104560.0,104550.0,0.00013608]
[1750195376091,6.88545726,104560.0,104550.0,0.00013608]
[1750195376297,0.64171829,104520.0,104510.0,68.68743949]
[1750195376473,0.89860005,104520.0,104510.0,68.73047949]
[1750195376699,0.95727649,104520.0,104510.0,68.73047949]
[1750195377127,0.98604549,104520.0,104510.0,68.73047949]
[1750195377548,0.98604549,104520.0,104510.0,68.73095276]
[1750195377752,0.98904549,104520.0,104510.0,68.73095276]
[1750195378555,1.21892905,104520.0,104510.0,68.82710198]
[1750195378698,1.12268729,104520.0,104510.0,68.82710198]
[1750195378905,1.28332729,104520.0,104510.0,68.82710198]
[1750195379114,1.12268729,104520.0,104510.0,68.73095276]
[1750195379298,1.28432729,104520.0,104510.0,68.73495276]
[1750195379505,0.72368729,104520.0,104510.0,68.73495276]
[1750195379702,0.23368729,104520.0,104510.0,68.73495276]
[1750195379972,0.54448729,104520.0,104510.0,68.73495276]
[1750195380338,0.88048729,104520.0,104510.0,68.82710198]
[1750195380473,0.54148729,104520.0,104510.0,68.73895276]
[1750195380888,0.88148729,104520.0,104510.0,68.73895276]
[1750195382246,0.88048729,104520.0,104510.0,68.73295276]
[1750195382469,0.88048729,104520.0,104510.0,68.82919452]
[1750195382470,0.71968729,104520.0,104510.0,68.82919452]
[1750195382922,0.88168729,104520.0,104510.0,68.84019452]
[1750195383130,0.88168729,104520.0,104510.0,68.93434374]
[1750195383278,0.72068729,104520.0,104510.0,68.93434374]
[1750195383479,0.44941829,104520.0,104510.0,68.95388459]
[1750195383680,0.30798565,104520.0,104510.0,68.94288459]
[1750195383908,0.30698565,104520.0,104510.0,68.95088459]
[1750195384118,0.30798565,104520.0,104510.0,68.95088459]
[1750195384292,0.30798565,104520.0,104510.0,68.95688459]
[1750195384293,0.30898565,104520.0,104510.0,68.95688459]
[1750195385866,0.30898565,104520.0,104510.0,68.91384459]
[1750195386089,0.30898565,104520.0,104510.0,68.95688459]
[1750195387747,0.14798565,104520.0,104510.0,69.15782229]
[1750195387946,0.23162055,104520.0,104510.0,69.17695847]
[1750195388466,0.22205328,104520.0,104510.0,69.16739047]